{"text_format":"1","workbook":"xlsx","n_sheets":8,"sheets":["MENU","PRESENTACIÓN INSTITUCIÓN","CRITERIOS DE EVALUACIÓN","REQUISITOS A EVALUAR","RESULTADOS EN RED","TABLA DE CALIFICACIÓN RESUMIDA","PERFIL RESUMIDO","CONSOLIDADO"],"not_rendered":{"charts":2,"images":6,"macros":1,"external_links":1,"defined_names":39,"comments":0,"pivot_tables":0},"unopened":[],"bounds":{"document_bytes":16777216,"sheet_cells":100000,"rows_first":2000,"rows_last":500,"rows_between":2000,"halvings":0,"cell_chars":16384,"cell_head_chars":4096},"cells_cut":0,"cells_raw":0,"read":"whole","date_system":"1900"}

{"sheet":"MENU","index":0,"n_rows":47,"n_cols":6,"rows_kept":47,"cut":false,"hidden":false,"merged":[[0,4,0,8],[11,0,15,3],[21,0,21,1],[22,0,22,2],[46,0,47,8],[33,0,34,8],[36,0,37,8],[39,0,40,8],[2,5,2,7],[18,2,18,8],[42,0,43,8],[23,0,23,2],[24,0,24,2],[25,0,25,2],[26,0,26,2],[30,0,31,8]]}
[null,null,null,null,"DIAGNÓSTICO DEL GRADO DE IMPLEMENTACIÓN DE LOS PROGRAMAS INSTITUCIONALES DE TECNOVIGILANCIA Versión 3.0:2018"]
[]
[null,null,null,null,null,"RESOLUCIÓN 4816 DE 2008"]
[]
[]
[]
[]
[]
[]
[]
[]
["\"más que un programa\n es una visión integral del\ndispositivo médico como una tecnología\nfundamental para la atención con\ncalidad y seguridad\nde la población usuaria\" "]
[]
[]
[]
[]
[]
[]
[]
[]
[]
["Diseñado y Desarrollado por:"]
["IQ Maria Victoria Urrea Duque"]
["IB Mukoil Ahmed Romanos Zapata"]
["Grupo de Tecnovigilancia"]
["Dirección de Dispositivos Médicos y Otras Tecnologías"]
["INVIMA"]
[]
["Referencias"]
[]
["INALCEC. Instituto Nacional de Consultoria en Calidad. DIAGNÓSTICO DEL SISTEMA DE GESTIÓN DE LA CALIDAD PARA DISPOSITIVOS MÉDICOS. REQUISITOS NORMA ISO13485. 2006"]
[]
[]
["PREMIO CALIDAD EN SALUD COLOMBIA. INSTITUCIONES PRESTADORAS DE SALUD. GUIA PARA PARTICIPANTES. CENTRO DE GESTION HOSPITALARIA. DEPARTAMENTO NACIONAL DE PLANEACIÓN"]
[]
[]
["DONABEDIAN, Avedis. La Calidad de la Atención Medica. Definición y Métodos de Evaluación. México : La Prensa Médica Mexicana, 1991"]
[]
[]
["DONABEDIAN, Avedis. Garantía de Calidad Quién es responsable? Calidad de la Atención en Salud. Volumen 3 Números 1 y 2. Junio de 1.996"]
[]
[]
["JOINT COMMISSION. Estándares de Acreditación de Hospitales.1996"]
[]
[]
[]
["MARTINEZ, Catalina. EVALUACION DE PROGRAMAS E INSTITUCIONES ALGUNOS ENFOQUES.DEPARTAMENTO DE METODOS DE INVESTIGACION Y DIAGNOSTICO EN EDUCACION I. FACULTAD DE EDUCACION UNED. 2001"]

{"sheet":"PRESENTACIÓN INSTITUCIÓN","index":1,"n_rows":37,"n_cols":3,"rows_kept":37,"cut":false,"hidden":true,"merged":[[33,0,33,2],[34,0,34,2],[35,0,35,2],[36,0,36,2],[2,1,2,2],[20,1,28,1],[7,1,7,2],[14,1,14,2],[31,0,31,1],[32,0,32,2]]}
[]
[]
[null,"FICHA DE PRESENTACIÓN "]
[null,"FECHA  DE LA VISITA",{"$f":"+TODAY()","v":"2021-05-10"}]
[null,"PROFESIONAL QUE REALIZA LA VISITA","Juan Galvis"]
[null,"PROFESIÓN","Bacteriologo"]
[null,"ORGANIZACIÓN Y ÁREA A LA QUE PERTENECE","IDS"]
[null,"I. DATOS CONTACTO DEL REFERENTE DEL PROGRAMA"]
[null,"NOMBRE REFERENTE DE TECNOVIGILANCIA"]
[null,"PROFESIÓN"]
[null,"CARGO"]
[null,"ÁREA O DEPARTAMENTO AL QUE PERTENECE"]
[null,"TELÉFONO CONTACTO"]
[null,"CORREO ELECTRÓNICO"]
[null,"II. DATOS DE LA INSTITUCIÓN"]
[null,"NOMBRE DE LA INSTITUCIÓN"]
[null,"DEPARTAMENTO"]
[null,"CIUDAD"]
[null,"DIRECCIÓN"]
[null,"NIVEL DE COMPLEJIDAD"]
[null,"SERVICIOS HABILITADOS (Escriba los de mayor complejidad)"]
[]
[]
[]
[]
[]
[]
[]
[]
[]
[]
["Diseñado y Desarrollado por:"]
["IQ Maria Victoria Urrea Duque"]
["IB Mukoil Ahmed Romanos Zapata"]
["Grupo de Tecnovigilancia"]
["Dirección de Dispositivos Médicos y Otras Tecnologías"]
["INVIMA"]

{"sheet":"CRITERIOS DE EVALUACIÓN","index":2,"n_rows":20,"n_cols":7,"rows_kept":20,"cut":false,"hidden":true,"merged":[[19,0,19,2],[3,1,3,6],[15,0,15,2],[14,0,14,1],[16,0,16,2],[17,0,17,2],[18,0,18,2]]}
[]
[]
[]
[null,"CRITERIOS DE  EVALUACIÓN"]
[]
[]
[]
[null,"CODIGO DESCRIPTOR","DEFINICIÓN","PUNTAJE ASIGNADO","PUNTAJE ASIGNADO","PUNTAJE ASIGNADO","PUNTAJE ASIGNADO"]
[null,"No hay nada","No se ha establecido ninguna disposición ",0,0,0,0]
[null,"Documentado","Se refiere a que el requisito a evaluar cuenta con un procedimiento o método definido, actualizado, aprobado y disponible el cual se ha socializado a todo el personal de la Institución.",0.25,{"$f":"+E12/3","v":0.33333333333333331},0.5,1]
[null,"Implementado","Evidencia que las disposiciones establecidas en el procedimiento o método para el cumplimiento del requisito, se están aplicando dentro de la Institución.",0.5,{"$f":"+(E12/3)*2","v":0.66666666666666663},1]
[null,"Resultado","Se refiere a los logros y efectos de la aplicación de los  procedimientos o métodos establecidos para el cumplimiento del requisito.",0.75,1]
[null,"Mejorado","Evidencia que hay madurez en la aplicación de las disposiciones que se evalúan y mejoran continuamente.",1]
[]
["Diseñado y Desarrollado por:"]
["IQ Maria Victoria Urrea Duque"]
["IB Mukoil Ahmed Romanos Zapata"]
["Grupo de Tecnovigilancia"]
["Dirección de Dispositivos Médicos y Otras Tecnologías"]
["INVIMA"]

{"sheet":"REQUISITOS A EVALUAR","index":3,"n_rows":67,"n_cols":11,"rows_kept":67,"cut":false,"hidden":true,"merged":[[53,1,53,3],[54,1,54,3],[29,1,29,5],[32,1,32,5],[49,1,49,2],[50,1,50,3],[51,1,51,3],[52,1,52,3],[34,1,34,5],[4,1,4,7],[48,3,48,9],[5,1,5,9],[8,1,8,7],[47,3,47,9],[11,1,11,5],[15,1,15,5],[19,1,19,5],[26,1,26,5],[36,2,36,5]]}
[]
[]
[]
[null,null,"Volver a Menú "]
[null,"PROGRAMA NACIONAL DE TECNOVIGILANCIA. Resolución 4816 de 2008 Ministerio de Salud y Protección Social"]
[null,{"$f":"+'PRESENTACIÓN INSTITUCIÓN'!C16","v":0}]
[]
[null,"No","Requisitos\nResolución 4816 de 2008","Aspecto a evaluar"," Evidencia","Criterio de Evaluación","Resultado","OBSERVACIONES","Puntaje","Cálculo"]
[null,"I. RESPONSABLE DEL PROGRAMA INSTITUCIONAL DE TECNOVIGILANCIA",null,null,null,null,null,null,10,{"$f":"+I9*AVERAGE(G10:G11)","v":2.5},{"$f":"+J9/I9","v":0.25}]
[null,1,"\nArticulo 9°. Numeral 2. Literal d, i\n\nArticulo 11°","La Institución ha designado como mínimo un profesional competente en el tema, responsable del Programa Institucional de Tecnovigilancia y ha comunicado al INVIMA la información de contacto para figurar como referente ante dicho Instituto. Los profesionales de la institución envian sus reportes al responsable del Programa de Tecnovigilancia en la institución.","Registro del nombramiento o designación como referente del programa institucional de tecnovigilancia, Constancia de inscripción a la red expedida por el INVIMA. (Por la Red Nacional de Tecnovigilancia o Aplicativo Web  cuenta con usuario y clave). El personal de Ia Institución reconoce al referente del Programa.","No hay nada",{"$f":"+VLOOKUP(F10,'REQUISITOS A EVALUAR'!$C$62:$F$65,4,0)","v":0},null,null,4]
[null,2,"Articulo 12°","La Institución ha capacitado al responsable en el  conocimiento de las obligaciones específicas del Programa  y en la interpretación y aplicación  adecuada de la normatividad relacionada Tecnovigilancia en el país. (Decreto 4725 de 2005, Resolución 4816 de 2008, Resolución 2003 de 2014)","Registro de inducción, capacitación en materia de tecnovigilancia, manual de funciones del responsable.","Documentado",{"$f":"+VLOOKUP(F11,'REQUISITOS A EVALUAR'!$C$62:$G$64,5,0)","v":0.5},null,null,3]
[null,"II. DOCUMENTACION DEL PROGRAMA",null,null,null,null,null,null,15,{"$f":"+I12*AVERAGE(G13:G15)","v":8.75},{"$f":"+J12/I12","v":0.58333333333333337}]
[null,3,"Articulo 10° Numeral 4","La institución ha documentado el manual o procedimiento de Tecnovigilancia, donde define el tipo de dispositivos médicos objeto de vigilancia, elementos conceptuales de los eventos e incidentes adversos, estrategia de vigilancia y recolección de reportes, análisis y valoración de los resultados, reporte al fabricante y autoridad sanitaria. Documenta mediante procedimientos, las funciones y actividades que  lleva a cabo en materia de Tecnovigilancia y estan  aprobados por el responsable de Tecnovigilancia y la Dirección de la institución.","Manual o procedimiento de Tecnovigilancia. Identificar Codigo del documento, ultima fecha de actualizacion y versión","Documentado",{"$f":"+VLOOKUP(F13,'REQUISITOS A EVALUAR'!$C$62:$E$66,3,0)","v":0.25},null,null,5]
[null,4,"Articulo 14° Articulo 17° numeral 1,2,3,4,5 ","Cuenta con un formato de notificación institucional para el reporte de eventos e incidentes adversos que contenga como minimo: \n\n1. Identificación del paciente incluyendo género o edad. \n\n2. Identificación del dispositivo médico: número de lote o serie, modelo, referencia, registro sanitario, marca.\n\n3.Gestión realizada, identificacion de la causa probable, acciones correctivas realizadas.\n\n4. Identificación del reportante: profesión, area de trabajo y datos de contacto.","Formato de reporte de eventos e incidentes adversos de la Institución.  Logo, Identificar Código del documento, última fecha de actualización y versión. Verificar si los campos permiten el adecuado diligenciamiento por parte del personal.","Implementado",{"$f":"+VLOOKUP(F14,'REQUISITOS A EVALUAR'!$C$62:$E$66,3,0)","v":0.5},null,null,5]
[null,5,"Articulo 10° Numeral 3","Cuenta con un sistema de administración y gestión de datos","Verificar la integridad, la exactitud, la fiabilidad, la consistencia, la confidencialidad de la información relacionada con los eventos e incidentes adversos que se han presentado en la Institución. (Excel, Access, Software Propio en Intranet)","Mejorado",{"$f":"+VLOOKUP(F15,'REQUISITOS A EVALUAR'!$C$62:$E$66,3,0)","v":1},null,null,5]
[null,"III. CAPACITACIÓN Y FORMACIÓN DEL PERSONAL",null,null,null,null,null,null,5,{"$f":"+I16*AVERAGE(G17:G19)","v":4.583333333333333},{"$f":"+J16/I16","v":0.91666666666666663}]
[null,6,"Articulo 12° Numeral 3","El responsable del PITV, orienta a los informantes en el correcto diligenciamiento del formato de reporte.","Registro de capacitación al personal y revisión de un formato de reporte diligenciado.","Resultado",{"$f":"+VLOOKUP(F17,'REQUISITOS A EVALUAR'!$C$62:$E$66,3,0)","v":0.75},null,null,3]
[null,7,"Articulo 9°. Numeral 3. Literal b.","Informa, divulga y aplica prácticas adecuadas de utilización de dispositivos médicos.","Registro de capacitación  sobre el uso de Dispositivos Médicos al igual que de Equipos Biomédicos al personal de la Institución Hospitalaria y resultado de evaluaciones.","Mejorado",{"$f":"+VLOOKUP(F18,'REQUISITOS A EVALUAR'!$C$62:$E$66,3,0)","v":1},null,null,4]
[null,8,"Articulo 9°. Numeral 3. Literal h.","La Institución genera  actividades de promoción y formación a los profesionales de la salud y personal asistencial, en relación al desarrollo e implementación del Programa Nacional de Tecnovigilancia y la gestión de eventos o incidentes adversos con dispositivos médicos.","Plan de capacitaciones. Identificar si en la inducción del personal se incluye temas relacionados con Tecnovigilancia y efectua las evaluaciones al personal","Mejorado",{"$f":"+VLOOKUP(F19,'REQUISITOS A EVALUAR'!$C$62:$E$66,3,0)","v":1},null,null,4]
[null,"IV. GESTION DE EVENTOS E INCIDENTES ADVERSOS",null,null,null,null,null,null,40,{"$f":"+I20*AVERAGE(G21:G26)","v":18.333333333333332},{"$f":"+J20/I20","v":0.45833333333333331}]
[null,9,"Articulo 12°\nArticulo 9°. Numeral 3. Literal e.","El responsable del PITV, realiza la identificación, análisis, toma de acciones preventivas o correctivas y comunicación de los eventos e incidentes adversos a nivel interno","Verificar si está documentado en el Manual de Tecnovigialncia. Como se hace la evaluación.Registro de aplicación metodologias para el análisis de causas de los eventos e incidentes adversos. (lluvia de ideas, 5 por qué, causa efecto o espina de pescado, Protocolo de Londres, sistemas de Gestión del Riesgo) Evidencia Actas de Comité, verificar fecha y los casos evaluados, la periodicidad de los comites y la ejecución del plan de acción.","Resultado",{"$f":"+VLOOKUP(F21,'REQUISITOS A EVALUAR'!$C$62:$E$66,3,0)","v":0.75},null,null,5]
[null,10,"Articulo 22°\nNumeral 2","El responsable utiliza la norma NTC5736:2009 “Dispositivos Médicos. Estructura de codificación para tipos de eventos adversos y sus causas” para identificar la causa probable del evento.\n","Registro del analisis de causas. Indicar que esta clasificación se ubican en el formulario FOREIA001  \" Formato de reportes de eventos e incidentes adversos asociados al uso del dispositivo médico\" de la plataforma web ","Mejorado",{"$f":"+VLOOKUP(F22,'REQUISITOS A EVALUAR'!$C$62:$E$66,3,0)","v":1},null,null,3]
[null,11,"Articulo 14°","El responsable, una vez gestiona los EIA,   realiza la notificación en los formatos de reporte de eventos e incidentes serios y no serios establecidos por el INVIMA","Formatos de reporte INVIMA (FOREIA001 Y RETEIM-002), completamente diligenciados. Enfatizar en que a partir del 01/07/2018 el reporte de eventos e incidentes adversos serios y no serios ahora se notifian por la plataforma virtual de Tecnovigilancia. Direccionar en Pagina web la ubicación: https://farmacoweb.invima.gov.co/TecnoVigilancia/faces/pages/reporteMasivoTrimestral.xhtml  \nLa información de seguimiento de los casos se notifica al correo electrónico tecnovigilancia@invima.gov.co.","No hay nada",{"$f":"+VLOOKUP(F23,'REQUISITOS A EVALUAR'!$C$62:$E$66,3,0)","v":0},null,null,3]
[null,12,"Articulo 9°. Numeral 2. Literal f.","El responsable realiza la notificación de los EIA al proveedor o distribuidor del dispositivo médico involucrado. ","Verificar notificación al proveedor. Enfatizar en el envío directo a la empresa asociada al registro sanitario.","No hay nada",{"$f":"+VLOOKUP(F24,'REQUISITOS A EVALUAR'!$C$62:$E$66,3,0)","v":0},null,null,3]
[null,13,"Articulo 15°","El responsable realiza la notificación de los EIA Serios al INVIMA en los tiempos establecidos","Verificar último correo electrónico notificado por el aplicativo de la plataforma Web del Invima, en el que se evidencie\n1. Código asigando (COL18XXXXXX)\n2. Fecha de Notificación","No hay nada",{"$f":"+VLOOKUP(F25,'REQUISITOS A EVALUAR'!$C$62:$E$66,3,0)","v":0},null,null,4]
[null,14,"Articulo 16°","El responsable realiza la notificación de los EIA No Serios a la  plataforma virtual de Tecnovigilancia en los tiempos establecidos","Verificar último correo electrónico notificado por el aplicativo de la plataforma Web del Invima, en el que se evidencie\n1. Código asigando (PRECOL18XXXXXX)\n2. Fecha de Notificación de cargue masivo trimestral","Mejorado",{"$f":"+VLOOKUP(F26,'REQUISITOS A EVALUAR'!$C$62:$E$66,3,0)","v":1},null,null,4]
[null,"V. ANÁLISIS ESTADÍSTICOS",null,null,null,null,null,null,10,{"$f":"+I27*AVERAGE(G28:G29)","v":5},{"$f":"+J27/I27","v":0.5}]
[null,15,"Articulo 10° Numeral 3","El sistema de administración y gestión de datos, permite el seguimiento en el tiempo del comportamiento de los problemas de seguridad relacionados con los dispositivos médicos.","Informes estadisticos de la institucion, identificar indicadores, fecha del último informe y acciones emprendidas","Mejorado",{"$f":"+VLOOKUP(F28,'REQUISITOS A EVALUAR'!$C$62:$E$66,3,0)","v":1},null,null,5]
[null,16,"Articulo 1°","La Institucion trabaja de manera articulada con el Programa de Seguridad del Paciente.","Documento que presente la interacción del Programa de Tecnovigilancia con la Politica de Seguridad del paciente. Indicadores asociados a Dispositivos Médicos en el Programa de Seguridad del Paciente","No hay nada",{"$f":"+VLOOKUP(F29,'REQUISITOS A EVALUAR'!$C$62:$E$66,3,0)","v":0},null,null,5]
[null,"VI. ARTICULACIÓN CON EL AREA DE MANTENIMIENTO DE EQUIPOS MEDICOS",null,null,null,null,null,null,10,{"$f":"+I30*AVERAGE(G31:G32)","v":10},{"$f":"+J30/I30","v":1}]
[null,17,"Decreto 4725 de 2005. Articulo 39°","El recurso humano que realiza mantenimiento y verificación de la calibración de equipos biomédicos de Clases IIb y III, tiene como responsable un profesional\nen ingeniería biomédica o ingenierías afines o personal técnico debidamente acreditado y registrado ante el  Invima.","Carta de constancia emitido por el INVIMA","Documentado",{"$f":"+VLOOKUP(F31,'REQUISITOS A EVALUAR'!$C$62:$H$63,6,0)","v":1},null,null,2]
[null,18,"Resolución 2003 de 2014. Anexo Técnico. Numeral 2.3.2 Estándares y Criterios de habilitación por Servicio. 2.3.2.1 Todos los servicios  Estándar Dotación\n","La institución realiza el mantenimiento de los equipos biomédicos eléctricos o mecánicos, con sujeción a un programa de revisiones periódicas de carácter preventivo y calibración de equipos, cumpliendo con los requisitos e indicaciones dadas por los fabricantes y con los controles de calidad, de uso corriente en los equipos que aplique. Lo anterior está consignado en la hoja de vida del equipo, con el mantenimiento correctivo.","*  Revisión del Inventario de Equipos biomédicos\n*  Cronograma de mantenimiento preventivo\n*  Hoja de vida.\n*  Registros o reportes del mantenimiento (fecha del registro vs la   fecha establecida en el cronograma)\n*  Registro de la verificación de la calibración \n\n","Mejorado",{"$f":"+VLOOKUP(F32,'REQUISITOS A EVALUAR'!$C$62:$E$66,3,0)","v":1},null,null,5]
[null,"VII. GESTION DE RISARH POR PARTE DE LA INSTITUCION",null,null,null,null,null,null,5,{"$f":"+I33*G34","v":3.75},{"$f":"+J33/I33","v":0.75}]
[null,19,"Resolución 2003 de 2014. Anexo Técnico. Numeral 2.3.2 Estándares y Criterios de habilitación por Servicio. 2.3.2.1 Todos los servicios. Medicamentos, Dispositivos Médicos e Insumos\n","El responsable del PITV verifica de las Alertas emitidas por el INVIMA","Documenta esta gestión de monitoreo de las alertas, divulga la informacion al personal de la Institución.","Resultado",{"$f":"+VLOOKUP(F34,'REQUISITOS A EVALUAR'!$C$62:$E$66,3,0)","v":0.75},null,null,5]
[null,"VIII. TRAZABILIDAD DM IMPLANTABLES *",null,null,null,null,null,null,5,{"$f":"+I35*G36","v":0},{"$f":"+J35/I35","v":0}]
[null,"20*","Artículo 31. Res. 4816 de 2008\n\nArticulo 63. Decreto 4725 de  2005","La Institución ha determinado mecanismos para  identificar la  trazabilidad  dispositivos médicos implantablesde manera fácil y oportuna, para identificar aquellos involucrados en informaciones de seguridad y poder emprender las acciones que sean del caso. La ficha de implante cuenta con los siguientes datos: la fecha de implante, código del dispositivo médico, nombre del implante, identificación, nombre del fabricante, denominación común, denominación comercial, referencias, número de lote, número de dispositivo médico, número de identificación del paciente, número de seguro, código del sitio de almacenamiento y número de la unidad funcional que realiza el implante y esta se encuentra en la historia clínica del paciente. ","Documento o procedimiento sobre trazabilidad para los dispositivos médicos implantables (o incluido en el manual de tecnovigilancia). Verificacion de la ficha de implante y revisión de historia clinica que aplique con está información.","No aplica",{"$f":"+VLOOKUP(F36,'REQUISITOS A EVALUAR'!$C$62:$E$67,3,0)","v":0}]
[null,null,"* Si la Institución Hospitalaria no utiliza dispositivos médicos implantables en la prestación de servicios de salud, marque la opción no aplica"]
[]
[null,null,null,null,"TOTAL REQUISITOS EVALUADOS",{"$f":"+COUNT(G36,G34,G31:G32,G28:G29,G23:G26,G21:G22,G17:G19,G13:G15,G10:G11)","v":20}]
[null,null,null,null,"TOTAL REQUISITOS \" No hay nada\"",{"$f":"+COUNTIFS(F10:F36,\"No hay nada\")","v":5}]
[null,null,null,null,"TOTAL REQUISITOS \"Documentado\"",{"$f":"+COUNTIFS(F10:F36,\"Documentado\")","v":3}]
[null,null,null,null,"TOTAL REQUISITOS \"Implementado\"",{"$f":"+COUNTIFS(F10:F36,\"Implementado\")","v":1}]
[null,null,null,null,"TOTAL REQUISITOS \"Resultado\"",{"$f":"+COUNTIFS(F10:F36,\"Resultado\")","v":3}]
[null,null,null,null,"TOTAL REQUISITOS \"Mejorado\"",{"$f":"+COUNTIFS(F10:F36,\"Mejorado\")","v":7}]
[null,null,null,null,"TOTAL REQUISITOS \"No aplica\"",{"$f":"+COUNTIFS(F11:F36,\"No aplica\")","v":1},null,null,null,{"$f":"+F46+G45","v":52.916666666666664}]
[null,null,null,null,"PUNTAJE OBTENIDO",{"$f":"+J33+J30+J27+J20+J16+J9+J12+J35","v":52.916666666666664}]
[null,null,null,null,"PUNTAJE ESPERADO",{"$f":"+I33+I30+I27+I20+I16+I12+I9+I35","v":100}]
[null,null,null,"¡Gracias por su compromiso con la Tecnovigilancia en Colombia!"]
[null,null,null,"EL FORMATO IMPRESO DE ESTE DOCUMENTO ES UNA COPIA NO CONTROLADA"]
[null,"Diseñado y Desarrollado por:",null,null,null,null,null,null,null,"F43-PM02-IVC V4 30/05/2013"]
[null,"IQ Maria Victoria Urrea Duque"]
[null,"IB Mukoil Ahmed Romanos Zapata"]
[null,"Grupo de Tecnovigilancia"]
[null,"Dirección de Dispositivos Médicos y Otras Tecnologías"]
[null,"INVIMA"]
[]
[]
[]
[]
[]
[null,null,"CODIGO DESCRIPTOR","DEFINICIÓN","PUNTAJE ASIGNADO","PUNTAJE ASIGNADO","PUNTAJE ASIGNADO","PUNTAJE ASIGNADO"]
[null,null,"No hay nada","No se ha establecido ninguna disposición ",0,0,0,0]
[null,null,"Documentado","Se refiere a que el requisito a evaluar cuenta con un procedimiento o método definido, actualizado, aprobado y disponible el cual se ha socializado a todo el personal de la Institución.",0.25,{"$f":"+F65/3","v":0.33333333333333331},0.5,1]
[null,null,"Implementado","Evidencia que las disposiciones establecidas en el procedimiento o método para el cumplimiento del requisito, se están aplicando dentro de la Institución.",0.5,{"$f":"+(F65/3)*2","v":0.66666666666666663},1]
[null,null,"Resultado","Se refiere a los logros y efectos de la aplicación de los  procedimientos o métodos establecidos para el cumplimiento del requisito.",0.75,1]
[null,null,"Mejorado","Evidencia que hay madurez en la aplicación de las disposiciones que se evalúan y mejoran continuamente.",1]
[null,null,"No aplica","La Institución no le aplica el requisitos de acuerdo con su Prestación de Servicios",0]

{"sheet":"RESULTADOS EN RED","index":4,"n_rows":43,"n_cols":12,"rows_kept":43,"cut":false,"hidden":true,"merged":[[41,0,41,2],[42,0,42,2],[2,3,2,9],[1,0,1,11],[37,0,37,1],[38,0,38,2],[39,0,39,2],[40,0,40,2]]}
[]
["DIAGNÓSTICO DEL GRADO DE IMPLEMENTACIÓN DEL PROGRAMA NACIONAL DE TECNOVIGILANCIA RESOLUCION 4816 DE 2008"]
[null,null,null,{"$f":"+'PRESENTACIÓN INSTITUCIÓN'!C16","v":0}]
[]
[]
[]
[]
[null,null,null,null,null,null,null,null,null,"EJES DE GESTIÓN","Puntaje Obtenido","% Puntaje Esperado"]
[null,null,null,null,null,null,null,null,null,"I. RESPONSABLE",{"$f":"+'REQUISITOS A EVALUAR'!J9","v":2.5},{"$f":"+'REQUISITOS A EVALUAR'!K9","v":0.25}]
[null,null,null,null,null,null,null,null,null,"II. DOCUMENTACIÓN",{"$f":"+'REQUISITOS A EVALUAR'!J12","v":8.75},{"$f":"+'REQUISITOS A EVALUAR'!K12","v":0.58333333333333337}]
[null,null,null,null,null,null,null,null,null,"III. CAPACITACIÓN Y FORMACIÓN DEL PERSONAL",{"$f":"+'REQUISITOS A EVALUAR'!J16","v":4.583333333333333},{"$f":"+'REQUISITOS A EVALUAR'!K16","v":0.91666666666666663}]
[null,null,null,null,null,null,null,null,null,"IV. GESTIÓN DE EVENTOS E INCIDENTES ADVERSOS",{"$f":"+'REQUISITOS A EVALUAR'!J20","v":18.333333333333332},{"$f":"+'REQUISITOS A EVALUAR'!K20","v":0.45833333333333331}]
[null,null,null,null,null,null,null,null,null,"V. ANÁLISIS ESTADÍSTICOS",{"$f":"+'REQUISITOS A EVALUAR'!J27","v":5},{"$f":"+'REQUISITOS A EVALUAR'!K27","v":0.5}]
[null,null,null,null,null,null,null,null,null,"VI.  MANTENIMIENTO DE EQUIPOS MEDICOS",{"$f":"+'REQUISITOS A EVALUAR'!J30","v":10},{"$f":"+'REQUISITOS A EVALUAR'!K30","v":1}]
[null,null,null,null,null,null,null,null,null,"VII. GESTIÓN DE ALERTAS",{"$f":"+'REQUISITOS A EVALUAR'!J33","v":3.75},{"$f":"+'REQUISITOS A EVALUAR'!K33","v":0.75}]
[null,null,null,null,null,null,null,null,null,"VIII. TRAZABILIDAD DM IMPLANTABLES",{"$f":"+'REQUISITOS A EVALUAR'!J35","v":0},{"$f":"+'REQUISITOS A EVALUAR'!K35","v":0}]
[]
[null,null,null,null,null,null,null,null,null,"PUNTAJE OBTENIDO DE 100 ESPERADOS",{"$f":"+SUM(K9:K16)","v":52.916666666666664}]
[]
[null,null,null,null,null,null,null,null,null,"% GRADO DE IMPLEMENTACIÓN DEL PROGRAMA",{"$f":"+IF('REQUISITOS A EVALUAR'!F36=\"No aplica\",AVERAGE(L9:L15),AVERAGE(L9:L16))","v":0.63690476190476197},{"$f":"+IF(K20>81%,\"ALTO\",IF(K20<50%,\"BAJO\",\"MEDIO\"))","v":"MEDIO"}]
[]
[null,null,null,null,null,null,null,null,null,"Criterio Grado de Implementación","NIVEL"]
[null,null,null,null,null,null,null,null,null,"0 - 50 %","BAJO"]
[null,null,null,null,null,null,null,null,null,"51 - 80 %","MEDIO"]
[null,null,null,null,null,null,null,null,null,"81 - 100 %","ALTO"]
[]
[]
[]
[]
[]
[]
[]
[]
[]
[]
[]
[]
["Diseñado y Desarrollado por:"]
["IQ Maria Victoria Urrea Duque"]
["IB Mukoil Ahmed Romanos Zapata"]
["Grupo de Tecnovigilancia"]
["Dirección de Dispositivos Médicos y Otras Tecnologías"]
["INVIMA"]

{"sheet":"TABLA DE CALIFICACIÓN RESUMIDA","index":5,"n_rows":38,"n_cols":9,"rows_kept":38,"cut":false,"hidden":true,"merged":[[31,4,31,8],[17,8,22,8],[37,1,37,3],[23,8,24,8],[32,1,32,2],[33,1,33,3],[34,1,34,3],[35,1,35,3],[36,1,36,3],[25,8,26,8],[30,4,30,8],[25,2,26,2],[25,7,26,7],[11,7,13,7],[6,1,6,8],[14,7,16,7],[17,7,22,7],[23,7,24,7],[9,8,10,8],[11,8,13,8],[23,2,24,2],[14,8,16,8],[9,7,10,7],[9,2,10,2],[11,2,13,2],[14,2,16,2],[17,2,22,2]]}
[]
[null,null,null,null,null,null,"TABLA DE  RESULTADOS  RESUMIDOS  DEL DIAGNÓSTICO DEL GRADO DE "]
[null,null,null,null,null,null," IMPLEMENTACIÓN DEL PROGRAMA INSTITUCIONAL DE TECNOVIGILANCIA"]
[null,null,null,null,null,null,"RESOLUCION 4816 DE 2008"]
[]
[]
[null,{"$f":"+'PRESENTACIÓN INSTITUCIÓN'!C16","v":0}]
[]
[null,"No","Eje de Gestión","Requisitos\nResolución 4816 de 2008","Aspecto a Evaluar Resumido","Criterio de Evaluación","Calificación  del Criterio\n% ","Puntaje Esperado","Puntaje Obtenido"]
[null,1,"I. RESPONSABLE DEL PROGRAMA INSTITUCIONAL DE TECNOVIGILANCIA",{"$f":"+'REQUISITOS A EVALUAR'!C10","v":"\nArticulo 9°. Numeral 2. Literal d, i\n\nArticulo 11°"},"Inscripción del Responsable",{"$f":"+'REQUISITOS A EVALUAR'!F10","v":"No hay nada"},{"$f":"+'REQUISITOS A EVALUAR'!G10","v":0},{"$f":"+'REQUISITOS A EVALUAR'!I9","v":10},{"$f":"+'REQUISITOS A EVALUAR'!J9","v":2.5}]
[null,2,null,{"$f":"+'REQUISITOS A EVALUAR'!C11","v":"Articulo 12°"},"Capacitación al responsable",{"$f":"+'REQUISITOS A EVALUAR'!F11","v":"Documentado"},{"$f":"+'REQUISITOS A EVALUAR'!G11","v":0.5}]
[null,3,"II. DOCUMENTACION DEL PROGRAMA",{"$f":"+'REQUISITOS A EVALUAR'!C13","v":"Articulo 10° Numeral 4"},"Manual de Tecnovigilancia",{"$f":"+'REQUISITOS A EVALUAR'!F13","v":"Documentado"},{"$f":"+'REQUISITOS A EVALUAR'!G13","v":0.25},{"$f":"+'REQUISITOS A EVALUAR'!I12","v":15},{"$f":"+'REQUISITOS A EVALUAR'!J12","v":8.75}]
[null,4,null,{"$f":"+'REQUISITOS A EVALUAR'!C14","v":"Articulo 14° Articulo 17° numeral 1,2,3,4,5 "},"Formato de reporte",{"$f":"+'REQUISITOS A EVALUAR'!F14","v":"Implementado"},{"$f":"+'REQUISITOS A EVALUAR'!G14","v":0.5}]
[null,5,null,{"$f":"+'REQUISITOS A EVALUAR'!C15","v":"Articulo 10° Numeral 3"},"Sistema de administración y gestión de datos",{"$f":"+'REQUISITOS A EVALUAR'!F15","v":"Mejorado"},{"$f":"+'REQUISITOS A EVALUAR'!G15","v":1}]
[null,6,"III. CAPACITACIÓN Y FORMACIÓN DEL PERSONAL",{"$f":"+'REQUISITOS A EVALUAR'!C17","v":"Articulo 12° Numeral 3"},"Diligenciamiento del formato de reporte.",{"$f":"+'REQUISITOS A EVALUAR'!F17","v":"Resultado"},{"$f":"+'REQUISITOS A EVALUAR'!G17","v":0.75},{"$f":"+'REQUISITOS A EVALUAR'!I16","v":5},{"$f":"+'REQUISITOS A EVALUAR'!J16","v":4.583333333333333}]
[null,7,null,{"$f":"+'REQUISITOS A EVALUAR'!C18","v":"Articulo 9°. Numeral 3. Literal b."},"Aplica prácticas adecuadas uso DM",{"$f":"+'REQUISITOS A EVALUAR'!F18","v":"Mejorado"},{"$f":"+'REQUISITOS A EVALUAR'!G18","v":1}]
[null,8,null,{"$f":"+'REQUISITOS A EVALUAR'!C19","v":"Articulo 9°. Numeral 3. Literal h."},"Plan de capacitaciones",{"$f":"+'REQUISITOS A EVALUAR'!F19","v":"Mejorado"},{"$f":"+'REQUISITOS A EVALUAR'!G19","v":1}]
[null,9,"IV. GESTION DE EVENTOS E INCIDENTES ADVERSOS",{"$f":"+'REQUISITOS A EVALUAR'!C21","v":"Articulo 12°\nArticulo 9°. Numeral 3. Literal e."},"Gestión EIA a nivel interno.",{"$f":"+'REQUISITOS A EVALUAR'!F21","v":"Resultado"},{"$f":"+'REQUISITOS A EVALUAR'!G21","v":0.75},{"$f":"+'REQUISITOS A EVALUAR'!I20","v":40},{"$f":"+'REQUISITOS A EVALUAR'!J20","v":18.333333333333332}]
[null,10,null,{"$f":"+'REQUISITOS A EVALUAR'!C22","v":"Articulo 22°\nNumeral 2"},"Norma NTC5736:2009 causa EIA\n",{"$f":"+'REQUISITOS A EVALUAR'!F22","v":"Mejorado"},{"$f":"+'REQUISITOS A EVALUAR'!G22","v":1}]
[null,12,null,{"$f":"+'REQUISITOS A EVALUAR'!C23","v":"Articulo 14°"},"Notificación en los formatos INVIMA",{"$f":"+'REQUISITOS A EVALUAR'!F23","v":"No hay nada"},{"$f":"+'REQUISITOS A EVALUAR'!G23","v":0}]
[null,13,null,{"$f":"+'REQUISITOS A EVALUAR'!C24","v":"Articulo 9°. Numeral 2. Literal f."},"Notificación al proveedor",{"$f":"+'REQUISITOS A EVALUAR'!F24","v":"No hay nada"},{"$f":"+'REQUISITOS A EVALUAR'!G24","v":0}]
[null,14,null,{"$f":"+'REQUISITOS A EVALUAR'!C25","v":"Articulo 15°"},"Notificación en tiempo al INVIMA",{"$f":"+'REQUISITOS A EVALUAR'!F25","v":"No hay nada"},{"$f":"+'REQUISITOS A EVALUAR'!G25","v":0}]
[null,15,null,{"$f":"+'REQUISITOS A EVALUAR'!C26","v":"Articulo 16°"},"Notificación en tiempo a SDS",{"$f":"+'REQUISITOS A EVALUAR'!F26","v":"Mejorado"},{"$f":"+'REQUISITOS A EVALUAR'!G26","v":1}]
[null,16,"V. ANÁLISIS ESTADÍSTICOS",{"$f":"+'REQUISITOS A EVALUAR'!C28","v":"Articulo 10° Numeral 3"},"Análisis estadisticos",{"$f":"+'REQUISITOS A EVALUAR'!F28","v":"Mejorado"},{"$f":"+'REQUISITOS A EVALUAR'!G28","v":1},{"$f":"+'REQUISITOS A EVALUAR'!I27","v":10},{"$f":"+'REQUISITOS A EVALUAR'!J27","v":5}]
[null,17,null,{"$f":"+'REQUISITOS A EVALUAR'!C29","v":"Articulo 1°"},"Interacción Seguridad del Paciente",{"$f":"+'REQUISITOS A EVALUAR'!F29","v":"No hay nada"},{"$f":"+'REQUISITOS A EVALUAR'!G29","v":0}]
[null,18,"VI. ARTICULACIÓN CON EL AREA DE MANTENIMIENTO DE EQUIPOS MEDICOS",{"$f":"+'REQUISITOS A EVALUAR'!C31","v":"Decreto 4725 de 2005. Articulo 39°"},"Inscripción RH Mantenimiento EBC",{"$f":"+'REQUISITOS A EVALUAR'!F31","v":"Documentado"},{"$f":"+'REQUISITOS A EVALUAR'!G31","v":1},{"$f":"+'REQUISITOS A EVALUAR'!I30","v":10},{"$f":"+'REQUISITOS A EVALUAR'!J30","v":10}]
[null,19,null,{"$f":"+'REQUISITOS A EVALUAR'!C32","v":"Resolución 2003 de 2014. Anexo Técnico. Numeral 2.3.2 Estándares y Criterios de habilitación por Servicio. 2.3.2.1 Todos los servicios  Estándar Dotación\n"},"Mantenimiento EBC",{"$f":"+'REQUISITOS A EVALUAR'!F32","v":"Mejorado"},{"$f":"+'REQUISITOS A EVALUAR'!G32","v":1}]
[null,20,"VII. GESTION DE RISARH POR PARTE DE LA INSTITUCION",{"$f":"+'REQUISITOS A EVALUAR'!C34","v":"Resolución 2003 de 2014. Anexo Técnico. Numeral 2.3.2 Estándares y Criterios de habilitación por Servicio. 2.3.2.1 Todos los servicios. Medicamentos, Dispositivos Médicos e Insumos\n"},"Gestión de alertas",{"$f":"+'REQUISITOS A EVALUAR'!F34","v":"Resultado"},{"$f":"+'REQUISITOS A EVALUAR'!G34","v":0.75},{"$f":"+'REQUISITOS A EVALUAR'!I33","v":5},{"$f":"+'REQUISITOS A EVALUAR'!J33","v":3.75}]
[null,21,"VIII. TRAZABILIDAD DM IMPLANTABLES",{"$f":"+'REQUISITOS A EVALUAR'!C36","v":"Artículo 31. Res. 4816 de 2008\n\nArticulo 63. Decreto 4725 de  2005"},"Trazabilidad DM implantables",{"$f":"+'REQUISITOS A EVALUAR'!F36","v":"No aplica"},{"$f":"+'REQUISITOS A EVALUAR'!G36","v":0},{"$f":"+'REQUISITOS A EVALUAR'!I35","v":5},{"$f":"+'REQUISITOS A EVALUAR'!J35","v":0}]
[null,null,null,null,null,null,null,{"$f":"+SUM(H10:H29)","v":100},{"$f":"+SUM(I10:I29)","v":52.916666666666664}]
[]
[]
[null,"Diseñado y Desarrollado por:",null,null,null,null,null,null,"F43-PM02-IVC V4 30/05/2013"]
[null,"IQ Maria Victoria Urrea Duque"]
[null,"IB Mukoil Ahmed Romanos Zapata"]
[null,"Grupo de Tecnovigilancia"]
[null,"Dirección de Dispositivos Médicos y Otras Tecnologías"]
[null,"INVIMA"]

{"sheet":"PERFIL RESUMIDO","index":6,"n_rows":56,"n_cols":19,"rows_kept":56,"cut":false,"hidden":false,"merged":[[55,0,55,2],[1,2,1,11],[50,0,50,1],[51,0,51,2],[52,0,52,2],[53,0,53,2],[54,0,54,2]]}
[]
[null,null,{"$f":"+'PRESENTACIÓN INSTITUCIÓN'!C16","v":0}]
[]
[]
[]
[]
[null,null,null,null,null,null,null,null,null,null,null,null,null,null,null,null,null,null,"ALTO"]
[]
[]
[null,null,null,null,null,null,null,null,null,null,null,null,null,null,null,null,null,null,"MEDIO"]
[]
[]
[]
[]
[null,null,null,null,null,null,null,null,null,null,null,null,null,null,null,null,null," ","BAJO"]
[]
[]
[]
[]
[]
[]
[]
[]
[]
[]
[]
[]
[]
[]
[]
[]
[]
[]
[]
[]
[]
[]
[]
[]
[]
[]
[]
[]
[]
[]
[]
[]
[]
[]
[]
["Diseñado y Desarrollado por:"]
["IQ Maria Victoria Urrea Duque"]
["IB Mukoil Ahmed Romanos Zapata"]
["Grupo de Tecnovigilancia"]
["Dirección de Dispositivos Médicos y Otras Tecnologías"]
["INVIMA"]

{"sheet":"CONSOLIDADO","index":7,"n_rows":8,"n_cols":37,"rows_kept":8,"cut":false,"hidden":true,"merged":[[2,1,3,12]]}
[]
[]
[null,"CONSOLIDADO DEL GRADO DE IMPLEMENTACIÓN DE LOS PROGRAMAS INSTITUCIONALES DE TECNOVIGILANCIA DE LOS PRESTADORES DE SERVICIOS DE SALUD"]
[]
[]
["FECHA  DE LA VISITA","PROFESIONAL QUE REALIZA LA VISITA","PROFESIÓN","ORGANIZACIÓN Y ÁREA A LA QUE PERTENECE","NOMBRE REFERENTE DE TECNOVIGILANCIA","PROFESIÓN","CARGO","ÁREA O DEPARTAMENTO AL QUE PERTENECE","TELÉFONO CONTACTO","CORREO ELECTRÓNICO","NOMBRE DE LA INSTITUCIÓN","DEPARTAMENTO","CIUDAD","DIRECCIÓN","NIVEL DE COMPLEJIDAD","Inscripción del Responsable","Capacitación al responsable","Manual de Tecnovigilancia","Formato de reporte","Sistema de administración y gestión de datos","Diligenciamiento del formato de reporte.","Aplica prácticas adecuadas uso DM","Plan de capacitaciones","Gestión EIA a nivel interno.","Norma NTC5736:2009 causa EIA\n","Notificación en los formatos INVIMA","Notificación al proveedor","Notificación en tiempo al INVIMA","Notificación en tiempo a SDS","Análisis estadisticos","Interacción Seguridad del Paciente","Inscripción RH Mantenimiento EBC","Mantenimiento EBC","Gestión de alertas","Trazabilidad DM implantables","PUNTAJE OBTENIDO DE 100 ESPERADOS","% GRADO DE IMPLEMENTACIÓN DEL PROGRAMA"]
[{"$f":"+'PRESENTACIÓN INSTITUCIÓN'!C4","v":"2021-05-10"},{"$f":"+'PRESENTACIÓN INSTITUCIÓN'!C5","v":"Juan Galvis"},{"$f":"+'PRESENTACIÓN INSTITUCIÓN'!C6","v":"Bacteriologo"},{"$f":"+'PRESENTACIÓN INSTITUCIÓN'!C7","v":"IDS"},{"$f":"+'PRESENTACIÓN INSTITUCIÓN'!C9","v":"00:00:00"},{"$f":"+'PRESENTACIÓN INSTITUCIÓN'!C10","v":0},{"$f":"+'PRESENTACIÓN INSTITUCIÓN'!C11","v":0},{"$f":"+'PRESENTACIÓN INSTITUCIÓN'!C12","v":0},{"$f":"+'PRESENTACIÓN INSTITUCIÓN'!C13","v":"00:00:00"},{"$f":"+'PRESENTACIÓN INSTITUCIÓN'!C14","v":0},{"$f":"+'PRESENTACIÓN INSTITUCIÓN'!C16","v":"00:00:00"},{"$f":"+'PRESENTACIÓN INSTITUCIÓN'!C17","v":"00:00:00"},{"$f":"+'PRESENTACIÓN INSTITUCIÓN'!C18","v":"00:00:00"},{"$f":"+'PRESENTACIÓN INSTITUCIÓN'!C19","v":"00:00:00"},{"$f":"+'PRESENTACIÓN INSTITUCIÓN'!C20","v":"00:00:00"},{"$f":"+'TABLA DE CALIFICACIÓN RESUMIDA'!F10","v":"No hay nada"},{"$f":"+'TABLA DE CALIFICACIÓN RESUMIDA'!F11","v":"Documentado"},{"$f":"+'TABLA DE CALIFICACIÓN RESUMIDA'!$F12","v":"Documentado"},{"$f":"+'TABLA DE CALIFICACIÓN RESUMIDA'!$F13","v":"Implementado"},{"$f":"+'TABLA DE CALIFICACIÓN RESUMIDA'!$F14","v":"Mejorado"},{"$f":"+'TABLA DE CALIFICACIÓN RESUMIDA'!$F15","v":"Resultado"},{"$f":"+'TABLA DE CALIFICACIÓN RESUMIDA'!$F16","v":"Mejorado"},{"$f":"+'TABLA DE CALIFICACIÓN RESUMIDA'!$F17","v":"Mejorado"},{"$f":"+'TABLA DE CALIFICACIÓN RESUMIDA'!$F18","v":"Resultado"},{"$f":"+'TABLA DE CALIFICACIÓN RESUMIDA'!$F19","v":"Mejorado"},{"$f":"+'TABLA DE CALIFICACIÓN RESUMIDA'!$F20","v":"No hay nada"},{"$f":"+'TABLA DE CALIFICACIÓN RESUMIDA'!$F21","v":"No hay nada"},{"$f":"+'TABLA DE CALIFICACIÓN RESUMIDA'!$F22","v":"No hay nada"},{"$f":"+'TABLA DE CALIFICACIÓN RESUMIDA'!$F23","v":"Mejorado"},{"$f":"+'TABLA DE CALIFICACIÓN RESUMIDA'!$F24","v":"Mejorado"},{"$f":"+'TABLA DE CALIFICACIÓN RESUMIDA'!$F25","v":"No hay nada"},{"$f":"+'TABLA DE CALIFICACIÓN RESUMIDA'!$F26","v":"Documentado"},{"$f":"+'TABLA DE CALIFICACIÓN RESUMIDA'!$F27","v":"Mejorado"},{"$f":"+'TABLA DE CALIFICACIÓN RESUMIDA'!$F28","v":"Resultado"},{"$f":"+'TABLA DE CALIFICACIÓN RESUMIDA'!$F29","v":"No aplica"},{"$f":"+'RESULTADOS EN RED'!K18","v":52.916666666666664},{"$f":"+'RESULTADOS EN RED'!K20","v":0.63690476190476197}]
[null,null,null,null,null,null,null,null,null,null,null,null,null,null,null,{"$f":"+'TABLA DE CALIFICACIÓN RESUMIDA'!G10","v":0},{"$f":"+'TABLA DE CALIFICACIÓN RESUMIDA'!G11","v":0.5},{"$f":"+'TABLA DE CALIFICACIÓN RESUMIDA'!$G12","v":0.25},{"$f":"+'TABLA DE CALIFICACIÓN RESUMIDA'!$G13","v":0.5},{"$f":"+'TABLA DE CALIFICACIÓN RESUMIDA'!$G14","v":1},{"$f":"+'TABLA DE CALIFICACIÓN RESUMIDA'!$G15","v":0.75},{"$f":"+'TABLA DE CALIFICACIÓN RESUMIDA'!$G16","v":1},{"$f":"+'TABLA DE CALIFICACIÓN RESUMIDA'!$G17","v":1},{"$f":"+'TABLA DE CALIFICACIÓN RESUMIDA'!$G18","v":0.75},{"$f":"+'TABLA DE CALIFICACIÓN RESUMIDA'!$G19","v":1},{"$f":"+'TABLA DE CALIFICACIÓN RESUMIDA'!$G20","v":0},{"$f":"+'TABLA DE CALIFICACIÓN RESUMIDA'!$G21","v":0},{"$f":"+'TABLA DE CALIFICACIÓN RESUMIDA'!$G22","v":0},{"$f":"+'TABLA DE CALIFICACIÓN RESUMIDA'!$G23","v":1},{"$f":"+'TABLA DE CALIFICACIÓN RESUMIDA'!$G24","v":1},{"$f":"+'TABLA DE CALIFICACIÓN RESUMIDA'!$G25","v":0},{"$f":"+'TABLA DE CALIFICACIÓN RESUMIDA'!$G26","v":1},{"$f":"+'TABLA DE CALIFICACIÓN RESUMIDA'!$G27","v":1},{"$f":"+'TABLA DE CALIFICACIÓN RESUMIDA'!$G28","v":0.75},{"$f":"+'TABLA DE CALIFICACIÓN RESUMIDA'!$G29","v":0}]